Workbook

Sheet Guidance

Sheet Process Map

Sheet Wholesale Tariff
B2: Household and NonHousehold Wholesale Tariff
O3: Colour codes: | P3: user input values
B4: 1 | C4: NAV applicant details | P4: calculated values
C5: Contact Name
C6: Company
C7: Address
C10: Postcode
C11: Telephone Number
C12: Email
B15: 2 | C15: Development location details
C16: Site address
C17: Postcode
C20: Is the site within the York area?* | D20: No
C21: Application reference number (if known)
C22: * Please see tab 'York Tariffs' for maps and list of postcodes
B24: 3 | C24: Development Characteristics
C25: Bulk Water Supply: | D25: Yes
C26: Bulk Wastewater Supply: | D26: Yes
C28: Total mains network: | E28: km
C29: Total sewers network: | E29: km
C31: Number of HH properties | E31: nr
C32: Number of NHH properties | E32: nr
C33: Total Number of points of connection required | D33: =IFERROR(SUM($D$31:$D$32), "ERROR") -> 0 | E33: nr
C36: Bulk Water Supply
C37: Annual HH water demand | D37: 130 | E37: m3/prop/yr
C38: Daily HH water demand | D38: =$D$37/365 -> 0.3561643836 | E38: m3/prop/d
C40: Annual NHH water demand | E40: m3/prop/yr
C41: Daily NHH water demand | D41: =D40/365 -> 0 | E41: m3/prop/d
C43: Bulk Wastewater Discharge | E43: *95% sewerage rate applied or not
C44: Annual HH wastewater discharge | E44: m3/prop/yr
C45: Daily HH wastewater discharge | D45: =IFERROR(D44/365,"") -> 0 | E45: m3/prop/d
C47: Annual NHH wastewater discharge | D47: 0 | E47: m3/prop/yr
C48: Daily NHH wastewater discharge | D48: =IFERROR(D47/365,"") -> 0 | E48: m3/prop/d
C50: Starting HH Tariffs 2020/21
C51: Fixed water charge | D51: =IF($D$25="Yes",IF($D$20="Yes",'Wholesale charges'!$D$28,'Wholesale charges'!$D$13),"") -> 9.89 | E51: £ | F51: York Tariff
C52: Fixed wastewater charge | D52: =IF($D$26="Yes",'Wholesale charges'!E13,"") -> 0 | E52: £
C53: Volumetric water charge | D53: =IF($D$25="Yes",IF($D$20="Yes",'Wholesale charges'!$D$29,'Wholesale charges'!$D$14),"") -> 138.85 | E53: p/m3
C54: Volumetric wastewater charge | D54: =IF($D$26="Yes",'Wholesale charges'!E14,"") -> 179.32 | E54: p/m3
C56: Starting NHH Tariffs 2020/21 | D56: =CONVERT($D$40,"m^3","l")*10^-6 -> 0
C57: Volumetric water charge | D57: =IF($D$25="Yes",IF($D$20="Yes",VLOOKUP($D$56,'Wholesale charges'!$C$35:$E$37,3,1),VLOOKUP($D$56,'Wholesale charges'!$C$35:$E$37,2,1)),"") -> 136.21 | E57: p/m3 | F57: York Tariff
C58: Volumetric wastewater charge | D58: =IFERROR(IF($D$26="Yes", IF(CONVERT($D$47,"m^3","l")*10^-6=0,0,IF(CONVERT($D$47,"m^3","l")*10^-6<50,'Wholesale charges'!$E$5,IF(CONVERT($D$47,"m^3","l")*10^-6<=250,'Wholesale charges'!$E$6,'Wholesale charges'!$E$7))),""),"") -> 0 | E58: p/m3
C62: NAV Density Rates
C63: Meters of mains per property | D63: =IFERROR(($D$28*1000)/$D$33,"") ->  | E63: m/prop
C64: Meters of sewers per property | D64: =IFERROR(($D$29*1000)/$D$33,"") ->  | E64: m/prop
B66: 4 | C66: Wholesale volumetric tariff
C68: Bulk Water Supply Tariff | D68: Starting weighted water rate (p/m3) | G68: =IFERROR(IF(D25="Yes",(($D$51*100*D31)/(D31*D37+D32*D40))+(D31*D37*$D$53+D32*D40*D57)/(D31*D37+D32*D40),""),"") -> 
D69: Total water avoidable costs (£/prop) | G69: =IFERROR(IF($D$25="Yes",'Water Avoidable Costs'!E24,""),"") -> 2.31191892
D70: Starting weighted water price for site (£) | G70: =IFERROR(((D31*D37+D32*D40)*G68)/100,"") -> 
D71: Total water avoidable costs for site (£) | G71: =IFERROR(G69*(D31+D32),"") -> 0
D72: Water tariff for site(£) | G72: =IFERROR(G70-G71,"") -> 
D73: Water tariff (p/m3) | G73: =IFERROR(G72/(D31*D37+D32*D40)*100,"") -> 
C77: Bulk Wastewater Discharge Tariff | D77: Starting weighted wastewater rate (p/m3) | G77: =IFERROR(IF(D26="Yes",((D52*100*D31)/(D31*D44+D32*D47)+(D31*D44*$D$54+D32*D47*D58)/(D31*D44+D32*D47)),""),"") -> 
D78: Total wastewater avoidable costs (£/prop) | G78: =IFERROR(IF(D26="Yes",'Sewerage Avoidable Costs'!E20,""),"") -> 0
D79: Starting weighted wastewater price for site (£) | G79: =IFERROR(((D31*D44+D32*D47)*G77)/100,"") -> 
D80: Total wastewater avoidable costs for site (£) | G80: =IFERROR(G78*(D31+D32),"") -> 0
D81: Wastewater tariff for site (£) | G81: =IFERROR(G79-G80,"") -> 
D82: Wastewater tariff (p/m3) | G82: =IFERROR(G81/(D31*D37+D32*D40)*100,"") -> 
D84: *Leakage discount (%) is applied after the avoidable costs have been deducted.
D85: *After careful consideration, the discount is capped to maximum 12% discount.
D86: Final water supply tariff (p/m3) | G86: =IFERROR($G$73*(1-'Water Avoidable Costs'!$E$20),"") -> 
D87: Final wastewater discharge tariff (p/m3) | G87: =IFERROR($G$82*(1-'Sewerage Avoidable Costs'!$E$16),"") -> 

Sheet Water Avoidable Costs
B1: Avoidable Costs - Water supply
B2: A | C2: Treated Water Distribution Ongoing On-site Costs | R2: Colour codes: | S2: user input values
C3: Nr | D3: Activity description | E3: Cost £ /prop /year | F3: Approach | S3: calculated values
C4: 1 | D4: Scientific services (sampling costs) | E4: =IFERROR(IF('Wholesale Tariff'!D25="Yes",'Scientific services'!$F$12,""),"") -> 0.41430673 | F4: Use of financial year 2018/19 expenditure values and total length of mains from APR 2018/19 to create a simple £ / m that can be multiplied with the estimate NAV rate m / prop.
C5: 2 | D5: Water operational costs | E5: =IFERROR(IF('Wholesale Tariff'!D25="Yes",'Water costs'!$F$25,""),"") ->  | F5: Use of year 2018/19 expenditure values and total length of mains from APR 2018/19 to create a simple £ / m that can be multiplied with the estimate NAV rate m / prop.
C6: 3 | D6: Leakage management costs | E6: =IFERROR(IF('Wholesale Tariff'!D25="Yes",'Leakage costs'!H14,""),"") ->  | F6: Use of new builds leakage expenditure (£/property) for repair and detection for the last decade.
B9: B | C9: Treated Water Distribution Replacement of On-site Assets
C10: Nr | D10: Activity description | E10: Cost £ /prop /year | F10: Approach
C11: 1 | D11: Communication pipes & stop taps replacement/renewal | E11: =IFERROR(IF('Wholesale Tariff'!D25="Yes",'Long Run Avoidable Costs'!$G$17,""),"") ->  | F11: Use of replacement cost £ / property / year for 2018/19, asset life and discount rate at 3.89% to create a future annual value.
C12: 2 | D12: Meter and meter chamber replacement/renewal | E12: =IFERROR(IF('Wholesale Tariff'!D25="Yes", 'Long Run Avoidable Costs'!$G$8,""),"") -> 1.667867565 | F12: Use of replacement cost £ / property / year for 2018/19, asset life and discount rate at 3.89% to create a future annual value.
C13: 3 | D13: Street furniture replacement/renewal | E13: =IFERROR(IF('Wholesale Tariff'!D25="Yes",'Long Run Avoidable Costs'!$J$37,""),"") ->  | F13: Use of replacement cost £ / property / year for 2018/19, asset life and discount rate at 3.89% to create a future annual value.
C14: 4 | D14: Water mains replacement/renewal | E14: =IFERROR(IF('Wholesale Tariff'!D25="Yes",'Long Run Avoidable Costs'!$G$26,""),"") ->  | F14: Use of replacement cost £ / property / year for 2018/19, asset life and discount rate at 3.89% to create a future annual value.
B17: C | C17: 1 | D17: Business overhead and profit | E17: =IFERROR(IF('Wholesale Tariff'!D25="Yes",SUM(E4:E6,E11:E14,E23)*(1-(1-'Business overhead'!C9)), ""),"") -> 0.2297446254 | F17: Estimated based on Retail HH, Loop recharge and YKS charge values. (% is partially updated to current values)
B20: D | C20: 1 | D20: Leakage allowance - water (%) | E20: =IFERROR(IF('Wholesale Tariff'!D25="Yes",'Leakage costs'!E30,""),"") ->  | F20: Estimated based on Natural Rate of Rise for new DMAs in our region and the NAV characteristics.
B23: E | C23: 1 | D23: Additional costs | E23: =IFERROR(IF('Wholesale Tariff'!D25="Yes",'Water costs'!H67+'Bidding Costs'!C21,""),"") ->  | F23: Include emergency and bidding costs. Estimated using the number of properties.
D24: TOTAL | E24: =SUM(E4:E6,E11:E14,E17,E23) -> 2.31191892

Sheet Sewerage Avoidable Costs
B1: Avoidable Costs - Sewerage discharge
B2: A | C2: Sewer Discharge Avoidable Costs | R2: Colour codes: | S2: user input values
C3: Nr | D3: Activity description | E3: Cost £ /prop /year | F3: Approach | S3: calculated values
C4: 1 | D4: Sewerage operational costs (combined sewers) | E4: =IFERROR(IF('Wholesale Tariff'!D26="Yes",SUM('Wastewater costs'!$O$28:$P$28),""),"") ->  | F4: Use of year 2018/19 expenditure values and total length of combined sewers from APR 2018/19 to create a simple £ / m cost that can be multiplied with the NAV unit meter of sewers / property.
B7: B | C7: Sewer Discharge Replacement of On-site Assets
C8: Nr | D8: Activity description | E8: Cost £ /prop /year | F8: Approach
C9: 1 | D9: Sewers replacement/renewal | E9: =IFERROR(IF('Wholesale Tariff'!D26="Yes",'Long Run Avoidable Costs'!G43,""),"") ->  | F9: Use of replacement cost £ / property / year for 2018/19, asset life and discount rate at 3.89% to create a future annual value.
C10: 2 | D10: Street furniture replacement/renewal | E10: =IFERROR(IF('Wholesale Tariff'!D26="Yes",'Long Run Avoidable Costs'!$J$38,""),"") ->  | F10: Use of replacement cost £ / property / year for 2018/19, asset life and discount rate at 3.89% to create a future annual value.
B13: C | C13: 1 | D13: Business overhead and profit | E13: =IFERROR(IF('Wholesale Tariff'!D26="Yes",SUM(E4,E9:E10)*(1-(1-'Business overhead'!C9)),""),"") -> 0 | F13: Estimate based on Retail HH, Loop recharge and YKS charge values. (% is partially updated to current values)
B16: D | C16: 1 | D16: Leakage allowance - sewerage (%) | E16: =IFERROR(IF('Wholesale Tariff'!D26="Yes",'Leakage costs'!E30,""),"") ->  | F16: Estimated based on Natural Rate of Rise for new DMAs in our region and the NAV characteristics.
B19: E | C19: 1 | D19: Additional costs | E19: =IFERROR(IF('Wholesale Tariff'!D26="Yes",'Bidding Costs'!C21,""),"") ->  | F19: Estimated based on bidding costs and the number of properties.
D20: TOTAL | E20: =SUM(E4,E9:E10,E13,E19) -> 0

Sheet Long Run Avoidable Costs
B1: Long Run Avoidable Costs
F2: Rate | M2: Colour codes: | N2: user input values
D3: 1 | E3: Discount Rate - WACC (as Ofwat's guidance) | F3: 0.0389 | N3: calculated values
E7: Asset Class | G7: TOTAL
D8: A | E8: Meter and Meter chamber | G8: =IFERROR(IF(AND('Wholesale Tariff'!D26="No", 'Wholesale Tariff'!D25="No"),"",SUM(J11:J12)),"") -> 1.667867565
D10: Yrs | E10: Asset | F10: £/property | G10: Asset Life | H10: Rate | I10: Annuity | J10: Final Cost
D11: 1 | E11: meters only activities | F11: ='Metering costs'!G37 -> 0.5476093953 | G11: ='Asset lives'!G3 -> 15 | H11: =F3 -> 0.0389 | I11: =-1*FV(H11,G11,1) -> 19.86070502 | J11: =(('Metering costs'!$B$9/'Metering costs'!$E$28)*F11)/I11 -> 1.177579219
D12: 2 | E12: meters/chambers | F12: ='Metering costs'!G38 -> 1.063006473 | G12: ='Asset lives'!G4 -> 40 | H12: =F3 -> 0.0389 | I12: =-1*FV(H12,G12,1) -> 92.59728265 | J12: =(('Metering costs'!$B$9/'Metering costs'!$E$28)*F12)/I12 -> 0.490288346
E16: Asset Class | G16: TOTAL | H16: Annuity
D17: B | E17: Communication pipes & stop taps | G17: =IFERROR(SUM(J20:J21),"") -> 
D19: Yrs | E19: Asset | F19: £/property | G19: Asset Life | H19: Rate | I19: Annuity | J19: Final Cost
D20: 1 | E20: Stop Taps | F20: ='Water costs'!$C$61 ->  | G20: ='Asset lives'!$G$10 -> 15 | H20: =$F$3 -> 0.0389 | I20: =-1*FV(H20,G20,1) -> 19.86070502 | J20: =(G20*F20)/I20 -> 
D21: 2 | E21: Comm pipes | F21: ='Water costs'!$C$59 ->  | G21: ='Asset lives'!$G$6 -> 70 | H21: =$F$3 -> 0.0389 | I21: =-1*FV(H21,G21,1) -> 346.0102423 | J21: =(G21*F21)/I21 -> 
E25: Asset Class | G25: TOTAL
D26: C | E26: Water mains | G26: =IFERROR(J29,"") -> 
D28: Yrs | E28: Asset | F28: £/property | G28: Asset Life | H28: Rate | I28: Annuity | J28: Final Cost
D29: 1 | E29: Water mains | F29: ='Water costs'!E36 ->  | G29: 70 | H29: =F3 -> 0.0389 | I29: =-1*FV(H29,G29,1) -> 346.0102423 | J29: =(('Water costs'!$I$13/'Water costs'!$I$15)*F29)/I29 -> 
E33: Asset Class | G33: TOTAL
D34: D | E34: Furniture replacement/renewal | G34: =IFERROR(SUM(J37:J38),"") -> 
D36: Yrs | E36: Asset | F36: £/property | G36: Asset Life | H36: Rate | I36: Annuity | J36: Final Cost
D37: 1 | E37: Furniture Water | F37: ='Water costs'!C45 ->  | G37: 25 | H37: =$F$3 -> 0.0389 | I37: =-1*FV(H37,G37,1) -> 41.03426596 | J37: =(G37*F37)/I37 -> 
D38: 2 | E38: Furniture Wastewater (Manhole covers) | F38: ='Wastewater costs'!F46 ->  | G38: 25 | H38: =$F$3 -> 0.0389 | I38: =-1*FV(H38,G38,1) -> 41.03426596 | J38: =(G38*F38)/I38 -> 
E42: Asset Class | G42: TOTAL
D43: E | E43: Sewers | G43: =IFERROR(J46,"") -> 
D45: Yrs | E45: Asset | F45: £/property | G45: Asset Life | H45: Rate | I45: Annuity | J45: Final Cost
D46: 1 | E46: Sewers | F46: ='Wastewater costs'!F41 ->  | G46: ='Asset lives'!G9 -> 100 | H46: =$F$3 -> 0.0389 | I46: =-1*FV(H46,G46,1) -> 1142.245142 | J46: =('Wastewater costs'!K36*F46)/I46 -> 

Sheet Asset lives (hidden)
B1: Asset Classes taken from models in UCD 21/02/2017 (PR19 Proforma)
F2: Asset Categories | G2: Asset Life (Yrs)
B3: Asset Life | C3: Years | E3: 1 | F3: AMR Meters - 15 years | G3: 15
E4: 2 | F4: =B34 -> Meter Chamber - 40 Years | G4: =VLOOKUP(F4,$B$5:$C$80,2,0) -> 40
B5: AMR Meters - 15 years | C5: 15 | E5: 3 | F5: Process Plant - E&M Components - 25 Years | G5: 25
B6: Boreholes - 60 Years | C6: 60 | E6: 4 | F6: =B75 -> Water Mains (Comm Pipes) - 70 Years | G6: 70
B7: Bridges - 60 Years | C7: 60 | E7: 5 | F7: Water Mains (All PVC) - 70 Years | G7: 70
B8: Catchwaters - 100 Years | C8: 100 | E8: 6 | F8: Sewers (All PVC) - 40 Years | G8: 40
B9: CSOs - 100 Years | C9: 100 | E9: 7 | F9: Sewers (300 to 1000mm) - 100 Years | G9: 100
B10: Detention Tank - 100 Years | C10: 100 | E10: 8 | F10: Equip eg ICA - equip & valves - 15 Years | G10: 15
B11: Earthbank/Concrete Dams - 200 Years | C11: 200 | E11: 9 | F11: Water Mains (300 to 600mm) - 100 Years | G11: 100
B12: Equip eg H'ware/S'ware/S'ware Dev - 5 Years | C12: 5
B13: Equip eg ICA - equip & valves - 15 Years | C13: 15
B14: Equip eg ICA - equip only - 7 Years | C14: 7
B15: Equip eg Modelling & D'bases - 7 Years | C15: 7
B16: Equip eg Outstat's & Inst - 10 Years | C16: 10
B17: Equip eg Tel/Comms/Cabling/Elec - 20 Years | C17: 20
B18: Equip eg Telemetry at one Site - 15 Years | C18: 15
B19: Equipment / Computers - 3 Years | C19: 3
B20: Equipment eg Water Meters - 12 years | C20: 12
B21: Fencing - 15 Years | C21: 15
B22: Filter Media (Brimac, GAC & Memb) - 5 Years | C22: 5
B23: Filter Media (RGF) - 10 Years | C23: 10
B24: Filter Media (Slag, Plastic etc) - 40 Years | C24: 40
B25: Furniture & Fittings - 7 Years | C25: 7
B26: Inter-Process Pipework (Sewage) - 60 Years | C26: 60
B27: Inter-Process Pipework (Water) - 60 Years | C27: 60
B28: Lagoons - 80 Years | C28: 80
B29: Land (Freehold) - 0 Years | C29: 0
B30: Land (Short Lease) - 0 Years | C30: 0
B31: Landscaping (Amenity) - 0 Years | C31: 0
B32: Landscaping (Protective) - 0 Years | C32: 0
B33: Lighting - 10 Years | C33: 10
B34: Meter Chamber - 40 Years | C34: 40
B35: Non Oper'l Buildings - 60 Years | C35: 60
B36: O'head Gantry Cranes - 40 Years | C36: 40
B37: Op Buildings - Pumping - 60 Years | C37: 60
B38: Operational Structures - 60 Years | C38: 60
B39: Operational Structures - Metalwork - 30 Years | C39: 30
B40: Pipe Bridge - 60 Years | C40: 60
B41: Process Plant - E&M Components - 10 Years | C41: 10
B42: Process Plant - E&M Components - 15 Years | C42: 15
B43: Process Plant - E&M Components - 25 Years | C43: 25
B44: Process Plant - E&M Components - 3 Years | C44: 3
B45: Process Plant - E&M Components - 40 Years | C45: 40
B46: Process Plant - E&M Components - 5 Years | C46: 5
B47: Process Plant - E&M Components - 7 Years | C47: 7
B48: Process Plant - E&M Major Items - 20 Years | C48: 20
B49: Process Plant - E&M Major Items - 30 Years | C49: 30
B50: Pumps - Pumping Stations & Inter Process - 20 Years | C50: 20
B51: River Prot Works eg Piling - 40 Years | C51: 40
B52: Roads, Car Parks, Etc. - 60 Years | C52: 60
B53: RW Storage Res - 80 Years | C53: 80
B54: Sea Outfalls (Piped) - 60 Years | C54: 60
B55: Service Reservoirs - 80 Years | C55: 80
B56: Sewer Relining - 50 years | C56: 50
B57: Sewers (< 300mm) - 80 Years | C57: 80
B58: Sewers (>1000mm) - 125 Years | C58: 125
B59: Sewers (300 to 1000mm) - 100 Years | C59: 100
B60: Sewers (All PVC) - 40 Years | C60: 40
B61: Spillways - 30 Years | C61: 30
B62: Steel Water Towers - 40 Years | C62: 40
B63: V&P 10 Year Life (Need Scrap Value) | C63: 10
B64: V&P 3 Year Life (Need Scrap Value) | C64: 3
B65: V&P 4 Year Life (Need Scrap Value) | C65: 4
B66: V&P 5 Year Life (Need Scrap Value) | C66: 5
B67: V&P 6 Year Life (Need Scrap Value) | C67: 6
B68: V&P 8 Year Life (Need Scrap Value) | C68: 8
B69: Water Mains - Cleaning - 3 Years | C69: 3
B70: Water Mains - Cleaning - 6 Years | C70: 6
B71: Water Mains (<300mm) - 70 Years | C71: 70
B72: Water Mains (>600mm) - 125 Years | C72: 125
B73: Water Mains (300 to 600mm) - 100 Years | C73: 100
B74: Water Mains (All PVC) - 70 Years | C74: 70
B75: Water Mains (Comm Pipes) - 70 Years | C75: 70
B76: Water Mains (Leakage Control) - 5 Years | C76: 5
B77: Water Mains (Scrape & Line) - 40 Years | C77: 40
B78: Water Mains (Tunnels) - 150 Years | C78: 150
B79: Water Storage Res (Earth Banked) - 80 Years | C79: 80
B80: Water Towers - Concrete - 60 Years | C80: 60

Sheet York tariffs

Sheet Bidding Costs (hidden)
A1: Date: | C1: 2020-03-26
A2: Name: | C2: Dimitra K
A4: Annuities represent a loan or investment which offer monthly fixed payments until the account is deplted or paid off.
B5: 2017/18 | D5: 2019/20
A6: Interest Rate | B6: 0.0477 | D6: 0.0389
A7: Payment Periods | B7: 25 | D7: 25 | E7: years
A8: Bidding Cost | B8: -15000 | D8: =B8*0.176+B8 -> -17640 | E8: £
A9: Nr of properties | D9: ='Wholesale Tariff'!$D$33 -> 0
C11: Years | D11: 1 | E11: 2 | F11: 3 | G11: 4 | H11: 5 | I11: 6 | J11: 7 | K11: 8 | L11: 9 | M11: 10 | N11: 11 | O11: 12 | P11: 13 | Q11: 14 | R11: 15 | S11: 16 | T11: 17 | U11: 18 | V11: 19 | W11: 20 | X11: 21 | Y11: 22 | Z11: 23 | AA11: 24 | AB11: 25
C12: Initial Payment | D12: =D8 -> -17640
C13: Payments | D13: =PMT($D$6,$D$7,$D$8) -> 1116.080624 | E13: =PMT($D$6,$D$7,$D$8) -> 1116.080624 | F13: 1116.080624 | G13: 1116.080624 | H13: 1116.080624 | I13: 1116.080624 | J13: 1116.080624 | K13: 1116.080624 | L13: 1116.080624 | M13: 1116.080624 | N13: 1116.080624 | O13: 1116.080624 | P13: 1116.080624 | Q13: 1116.080624 | R13: 1116.080624 | S13: 1116.080624 | T13: 1116.080624 | U13: 1116.080624 | V13: 1116.080624 | W13: 1116.080624 | X13: 1116.080624 | Y13: 1116.080624 | Z13: 1116.080624 | AA13: 1116.080624 | AB13: 1116.080624
C15: Final payment | D15: =SUM(D12:D13) -> -16523.91938 | E15: =SUM(E12:E13) -> 1116.080624 | F15: 1116.080624 | G15: 1116.080624 | H15: 1116.080624 | I15: 1116.080624 | J15: 1116.080624 | K15: 1116.080624 | L15: 1116.080624 | M15: 1116.080624 | N15: 1116.080624 | O15: 1116.080624 | P15: 1116.080624 | Q15: 1116.080624 | R15: 1116.080624 | S15: 1116.080624 | T15: 1116.080624 | U15: 1116.080624 | V15: 1116.080624 | W15: 1116.080624 | X15: 1116.080624 | Y15: 1116.080624 | Z15: 1116.080624 | AA15: 1116.080624 | AB15: 1116.080624
D16: =PV(D6,D7,D13:AB13) -> -17640 | E16: <<calculate original investment amount
A19: NPV | C19: =NPV(D6,D15:AB15) -> 660.5024545
A21: NAV discount (incl WACC) | C21: =IFERROR(-(D12/D7/D9),"") ->  | D21: £/prop

Sheet Wholesale charges (hidden)
A1: 1 | B1: Yorkshire Water Measured NH Water and Wastewater Charges (excl. York Waterworks)
B2: Description | C2: Units | D2: 2020/21 Wholesale water NH charges | E2: 2020/21 Wholesale wastewater NH charges | F2: Tariff Report Name
B3: Standard Tariff 0-20 | C3: p/m3 | D3: 136.21 | E3: 171.61 | F3: Metered Volumetric Charges
B4: Standard Tariff 20-50 | C4: p/m3 | D4: 136.21 | E4: 171.61 | F4: Metered Volumetric Charges
B5: Banded Tariff 50-100 | C5: p/m3 | D5: 86.98 | E5: 171.61 | F5: Metered Volumetric Charges
B6: Banded Tariff 100-250 | C6: p/m3 | D6: 86.98 | E6: 138.71 | F6: Metered Volumetric Charges
B7: Banded Tariff >250 Mla | C7: p/m3 | D7: 73.41 | E7: 126.61 | F7: Metered Volumetric Charges
A11: 2 | B11: Yorkshire Water Measured HH Water and Wastewater Charges (excl. York Waterworks)
B12: Description | C12: Units | D12: 2020/21 Wholesale water HH charges | E12: 2020/21 Wholesale wastewater HH charges
B13: Fixed Charge | C13: £ | D13: 9.89 | E13: 0
B14: Volumetric Charge | C14: p/m3 | D14: 138.85 | E14: 179.32
B17: *If a NAV applies for a site within the defined geographical area of York Waterworks, then the relevant water tariff should be applied. Wastewater tariffs are the same in both cases.
A18: 3 | B18: York Waterworks Measured NH Water and Wastewater Charges
B19: Description | C19: Units | D19: 2020/21 Wholesale water NH charges | E19: Tariff Report Name
B20: Standard Tariff 0-5 | C20: p/m3 | D20: 75.47 | E20: Metered Volumetric Charges
B21: Standard Tariff 5-50 | C21: p/m3 | D21: 75.47 | E21: Metered Volumetric Charges
B22: Banded Tariff <50 Mla | C22: p/m3 | D22: 75.47 | E22: Metered Volumetric Charges
B23: Banded Tariff >50 & <=250 Mla | C23: p/m3 | D23: 66.3 | E23: Metered Volumetric Charges
B24: Banded Tariff >250 Mla | C24: p/m3 | D24: 66.3 | E24: Metered Volumetric Charges
A26: 4 | B26: York Waterworks Measured HH Water and Wastewater Charges
B27: Description | C27: Units | D27: 2020/21 Wholesale water HH charges
B28: Fixed Charge | C28: £ | D28: 9.89
B29: Volumetric Charge | C29: p/m3 | D29: 78.65
B33: Source of Data: | C33: vlookup table for banded NH tariffs
C34: Bands | D34: NH Yorkshire WATER charges | E34: NH York WATER charges
C35: 0 | D35: =D3 -> 136.21 | E35: =D20 -> 75.47
C36: 50 | D36: =D5 -> 86.98 | E36: =D23 -> 66.3
C37: 250 | D37: =D7 -> 73.41 | E37: =D24 -> 66.3

Sheet Scientific services (hidden)
A1: YW Source: | B1: Sampling and Analysis Manager, Clare Beasant, August 2018, 'WSZ Sample Costs 2015'
A2: YW Definition: | B2: ‘Any costs YW takes over for the collection and analysis of samples for scientific purposes per year per property’
A3: DWI guidance: | B3: DWI - Guidance on the Regulatory Responsibilities of NAVs in relation to Public Water Supplies
A5: Source data: | B5: For the estimation of the sampling cost we use the financial year 2017/18 and the nr of properties from APR 2017/18
A6: Properties 2018/19 | B6: 2299162
B8: Year | C8: Annual Total Cost | D8: Aveg Cost per year | E8: £ / property / year | F8: 3yr average
B9: 2015/16 | C9: =SUM(D20:D31) -> 1021269.97 | D9: =C9/12 -> 85105.83083 | E9: =C9/$B$6 -> 0.4441922622
B10: 2016/17 | C10: =SUM(D32:D43) -> 1068594.11 | D10: =C10/12 -> 89049.50917 | E10: =C10/$B$6 -> 0.4647754747
B11: 2017/18 | C11: =SUM(D44:D55) -> 957061.99 | D11: 79755.16583 | E11: =C11/$B$6 -> 0.4162655742
B12: 2018/19 | C12: =SUM(D56:D67) -> 952558.29 | D12: 79379.8575 | E12: =C12/$B$6 -> 0.41430673 | F12: =AVERAGE(E12) -> 0.41430673 | G12: << Average sampling cost for 3 years
B13: 2019/20 | C13: =SUM(D68:D79) -> 798001.36 | D13: =C13/12 -> 66500.11333 | E13: =C13/$B$6 -> 0.3470835722
A15: Sampling Costs 2015 - 2018
A16: YEAR | B16: Month | C16: Regulatory Cost | D16: Total Cost
A17: =YEAR(B17) -> 2015 | B17: 2015-01-01
B18: 2015-02-01
B19: 2015-03-01
B20: 2015-04-01 | C20: 39299.34 | D20: 75701.66
B21: 2015-05-01 | C21: 42018.46 | D21: 77707.28
B22: 2015-06-01 | C22: 42710.14 | D22: 82110.28
B23: 2015-07-01 | C23: 44637.3 | D23: 93438.68
B24: 2015-08-01 | C24: 40692.25 | D24: 90307.19
B25: 2015-09-01 | C25: 44549.8 | D25: 90814.01
B26: 2015-10-01 | C26: 43179.51 | D26: 93467.46
B27: 2015-11-01 | C27: 41677.22 | D27: 93677.48
B28: 2015-12-01 | C28: 41804.2 | D28: 77107.98
A29: =YEAR(B29) -> 2016 | B29: 2016-01-01 | C29: 42416.56 | D29: 84097.56
B30: 2016-02-01 | C30: 38893.5 | D30: 76017.75
B31: 2016-03-01 | C31: 44361.99 | D31: 86822.64
B32: 2016-04-01 | C32: 43673.75 | D32: 94106.63
B33: 2016-05-01 | C33: 39332.55 | D33: 89090.26
B34: 2016-06-01 | C34: 45324.68 | D34: 102887.06
B35: 2016-07-01 | C35: 41695.24 | D35: 109465.9
B36: 2016-08-01 | C36: 43598.45 | D36: 109899.83
B37: 2016-09-01 | C37: 44140.56 | D37: 97327.3
B38: 2016-10-01 | C38: 43406.67 | D38: 93136.7
B39: 2016-11-01 | C39: 42557.73 | D39: 87595
B40: 2016-12-01 | C40: 42109.61 | D40: 78295.17
A41: =YEAR(B41) -> 2017 | B41: 2017-01-01 | C41: 31402.15 | D41: 66700.9
B42: 2017-02-01 | C42: 27639.3 | D42: 65336.89
B43: 2017-03-01 | C43: 33874.19 | D43: 74752.47
B44: 2017-04-01 | C44: 28935.48 | D44: 65464.87
B45: 2017-05-01 | C45: 38063.99 | D45: 76261.51
B46: 2017-06-01 | C46: 40786.25 | D46: 89979.9
B47: 2017-07-01 | C47: 37701.13 | D47: 97094.99
B48: 2017-08-01 | C48: 35964.07 | D48: 93071.03
B49: 2017-09-01 | C49: 37693.01 | D49: 87285.94
B50: 2017-10-01 | C50: 43156.9 | D50: 92753.86
B51: 2017-11-01 | C51: 40155.67 | D51: 84769.01
B52: 2017-12-01 | C52: 29890.74 | D52: 62365.61
A53: =YEAR(B53) -> 2018 | B53: 2018-01-01 | C53: 35234.41 | D53: 76462.39
B54: 2018-02-01 | C54: 29207.07 | D54: 62527.81
B55: 2018-03-01 | C55: 38212.11 | D55: 69025.07
B56: 2018-04-01 | C56: 31685.94 | D56: 68840.11
B57: 2018-05-01 | C57: 34204.76 | D57: 68301.83
B58: 2018-06-01 | C58: 36405.96 | D58: 79020.44
B59: 2018-07-01 | C59: 33553.81 | D59: 82545.39
B60: 2018-08-01 | C60: 33832.15 | D60: 84063.36
B61: 2018-09-01 | C61: 36239.61 | D61: 87475.38
B62: 2018-10-01 | C62: 35237.27 | D62: 86662.57
B63: 2018-11-01 | C63: 35477.93 | D63: 79342.81
B64: 2018-12-01 | C64: 34074.78 | D64: 70691.49
A65: 2019 | B65: 2019-01-01 | C65: 38343.77 | D65: 77884.2
B66: 2019-02-01 | C66: 37008.14 | D66: 76797.06
B67: 2019-03-01 | C67: 43530.19 | D67: 90933.65
B68: 2019-04-01 | C68: 37222.2 | D68: 71106.31
B69: 2019-05-01 | C69: 42400.37 | D69: 86387.59
B70: 2019-06-01 | C70: 42072.79 | D70: 89130.75
B71: 2019-07-01 | C71: 40072.7 | D71: 89958.27
B72: 2019-08-01 | C72: 40556.76 | D72: 94917.38
B73: 2019-09-01 | C73: 41952.16 | D73: 91515.79
B74: 2019-10-01 | C74: 42730.73 | D74: 99697.64
B75: 2019-11-01 | C75: 41814.27 | D75: 101062.72
B76: 2019-12-01 | C76: 39792.89 | D76: 74224.91
A77: 2020 | B77: 2020-01-01
B78: 2020-02-01
B79: 2020-03-01
B80: 2020-04-01
B81: 2020-05-01
B82: 2020-06-01
B83: 2020-07-01
B84: 2020-08-01
B85: 2020-09-01
B86: 2020-10-01
B87: 2020-11-01
B88: 2020-12-01

Sheet Metering costs (hidden)
A1: Source: | B1: Billing solutions Team Leader, Kelly Lloyd, August 2018 'MEX data 13.08.2018' &
B2: Capital Scheme Project Manager, Chris Daw, October 2018
A3: Definition: | B3: Meter and Chamber replacement/renewal include costs for asset material, fuel, team plant, support plant,
B4: consumable materials, management fee, non asset materials, non productive labour, productive labour, site overhead, sub contract invoice
A5: Important comment: When the NAV application is fo WATER ONLY then the meter cost is 100% water avoidable cost, when the application is for water and wastewater is 50/50 between water and wastewater,
C6: when is for wastewater only the meter costs are 0
B8: Meter and meter chamber Renewal/Replacement Costs
A9: Metered Properties 2018/19 | B9: =1145.569*1000 -> 1145569 | C9: << APR Datashare 2018 -Table 4Q
A10: Properties 2018/19 | B10: =2319.165*1000 -> 2319165 | C10: << APR Datashare 2018 -Table 4Q
B13: Years | C13: Nr of HH meters renewed | D13: Nr of NHH meters renewed | E13: Total nr of meters renewed
A14: 1 | B14: 2010-11 | C14: 76920 | D14: 9377 | E14: =SUM(C14:D14) -> 86297
A15: 2 | B15: 2011-12 | C15: 46467 | D15: 10964 | E15: =SUM(C15:D15) -> 57431
A16: 3 | B16: 2012-13 | C16: 134405 | D16: 20854 | E16: 155259
A17: 4 | B17: 2013-14 | C17: 48378 | D17: 12982 | E17: 61360
A18: 5 | B18: 2014-15 | C18: 4107 | D18: 1650 | E18: 5757
A19: 6 | B19: 2015-16 | C19: 27453 | D19: 5347 | E19: 32800
A20: 7 | B20: 2016-17 | C20: 33359 | D20: 4264 | E20: 37623
A21: 8 | B21: 2017-18 | C21: 24957 | D21: 1866 | E21: 26823
A22: 9 | B22: 2018-19 | C22: 3716 | D22: 1625 | E22: 5341
B25: Years | C25: Scheme | D25: Expenditure | E25: Activities | F25: UnitCost | G25: £ / metered property / year | H25: £ / property / year | I25: 3yr average
A26: 1 | B26: 2015-16 | C26: S/3601 | D26: 5691194 | E26: 32800 | F26: =D26/E26 -> 173.5120122 | G26: =D26/$B$9 -> 4.968006292
A27: 2 | B27: 2016-17 | C27: S/4106 | D27: 6680791 | E27: 37623 | F27: =D27/E27 -> 177.5719905 | G27: =D27/$B$9 -> 5.831853865
A28: 3 | B28: 2017-18 | C28: S/4393 | D28: 6044960 | E28: 26823 | F28: 225.3647989 | G28: =D28/$B$9 -> 5.276818769 | H28: =D28/$B$10 -> 2.606524331
A29: 4 | B29: 2018/19 | C29: S/4818 | D29: 1845071.61 | E29: 5341 | F29: 345.4543363 | G29: =D29/$B$9 -> 1.610615869 | H29: =D29/$B$10 -> 0.7955758258 | I29: =AVERAGE(G29) -> 1.610615869 | J29: << Meter replacement/renewal cost for 2018/19 is used for the model
C33: External | D33: Internal | E33: << Exercise to identify the % of activities that are meter only or meter /chamber
B34: count | C34: 13 | D34: 11 | E34: It is assumed that when an activity is external is for meter/chamber,
B35: % of total | C35: 0.542 | D35: 0.458 | E35: and when is internal is for meter only
B36: average cost | C36: 411.1052645 | D36: 238.2539463
B37: sum cost | C37: 56064.55842 | D37: 28932.12377 | F37: meter | G37: =I29*D38 -> 0.5476093953
B38: % of cost | C38: 0.66 | D38: 0.34 | F38: meter/chamber | G38: =I29*C38 -> 1.063006473

Sheet Water costs (hidden)
A1: 0 | B1: Liam Saddler, Strategic Asset Manager - Clean Water Networks, October 2018
A2: 1. definition: | B2: The costs cover Flushing and Linning (current cleaning methods). Both cleaning techniques are predominantly done on YW's distribution network rather than trunk main network.
A4: 2,3 source: | B4: Martin Hopkins, Finance Business Partner, October 2018
A5: 2,3 definition: | B5: R&M expenditure on street furniture renewal, Communication pipes (flow/pressure), stop tap installations/renewals, CS&N stop tap adaptors
A7: 1. | B7: Water Operational Costs
A8: Properties 2018/19 | B8: =2319.165*1000 -> 2319165 | C8: << APR Datashare 2018 -Table 4Q
A9: Nr of DMA: | B9: 2500 | C9: << Provided by Katy Walker
B11: CCC Table 11 - Water services | K11: APR Datashare 2018/19
C12: 2011/12 | D12: 2012/13 | E12: 2013/14 | F12: 2014/15 | G12: 2015/16 | H12: 2016/17 | I12: 2017/18 | K12: Parameter | L12: km | M12: meters | N12: meters/property
B13: Total length of potable mains as at 31 March (km) | C13: 31270.3 | D13: 31274.08 | E13: 31363.38 | F13: 31404.9 | G13: 31531.96 | H13: 31604.71 | I13: 31693.4 | K13: Total Length of Mains 2018/19 | L13: 31790.1 | M13: =L13*1000 -> 31790100 | N13: =M13/B8 -> 13.70756285
B14: Total length of mains relined | C14: 19.05 | D14: 6.61 | E14: 13 | F14: 0.2 | G14: 7 | H14: 3.014 | I14: 15.41
B15: Total length of mains renewed (km) | C15: 125.19 | D15: 112.87 | E15: 75.3 | F15: 6.27 | G15: 29.2 | H15: 43.64 | I15: 25.78
B16: Mains cleaned (km) | C16: 241.29 | D16: 147.33 | E16: 22.6 | F16: 13.54 | G16: 20.54 | H16: 26.34
B18: Rate mains cleaned | C18: =C16/$C$13 -> 0.007716267513 | D18: =D16/$D$13 -> 0.004710929946 | E18: =E16/$E$13 -> 0.0007205856001 | F18: =F16/$F$13 -> 0.0004311429108 | G18: =G16/$G$13 -> 0.0006514025769 | H18: =H16/H13 -> 0.000833420082
B19: Rate of relining | C19: =C14/C13 -> 0.0006092042609 | D19: 0.0002113571366 | E19: 0.0004144961417 | F19: 6.368432952e-06 | G19: 0.0002219969834 | H19: 9.536553254e-05 | I19: 0.000486221106
B20: Rate renewed | C20: =C15/C13 -> 0.00400347934 | D20: =D15/D13 -> 0.003609059003 | E20: 0.00240088919 | F20: 0.000199650373 | G20: 0.0009260445592 | H20: 0.001380806848 | I20: 0.0008134185666
B23: Provided by Liam Saddler
B24: Activity 2017/18 | C24: Cost (£) and Nr of DMAs | D24: Total expenditure (£) | E24: £/ meter for YW | F24: Cost of flushing for NAV (£/property/year)
B25: Flushing | C25: 5000 | D25: =C25*C26 -> 4500000 | E25: =D25/(L13*1000) -> 0.1415535025 | F25: =E25*'Wholesale Tariff'!D63 -> 
C26: 900
A32: 2. | B32: Replacement Costs - Water
B33: 1. Water mains
B34: Provided by Liam Saddler
B35: Cost of replacement (£/metre of mains) | C35: Total expenditure (£/metre) | D35: £/ meter for YW | E35: Cost of renewal for NAV (£/property/year)
B36: =250 -> 250 | C36: =B36*(I15*1000) -> 6445000 | D36: =C36/M13 -> 0.2027360719 | E36: =D36*'Wholesale Tariff'!D63 -> 
B40: 2. Street furniture
B41: Provided by Martin Hopkins
B42: Years | C42: 2017/18 | D42: 2018/19
B43: Street furnit cost of replacement | C43: 2015233.64 | D43: 3512575.09
B45: Cost of street furniture for NAV (£/property/year) | C45: =(AVERAGE(C43:D43)/M13)*'Wholesale Tariff'!D63 -> 
B50: 3. Communication pipes. Stop taps
B51: Provided by Martin Hopkins
B52: Years | C52: 2017/18 | D52: 2018/19
B53: Comm pipes cost of replacement | C53: 3210025.55 | D53: 5550586.35
B55: Years | C55: 2017/18 | D55: 2018/19
B56: Stop taps cost of replacement | C56: 3689378.74 | D56: 5665121.91
B59: Cost of comm pipes for NAV (£/property/year) | C59: =(AVERAGE(C53:D53)/M13)*'Wholesale Tariff'!D63 -> 
B61: Cost of stop taps for NAV (£/property/year) | C61: =(AVERAGE(C56:D56)/M13)*'Wholesale Tariff'!$D$63 -> 
A64: 3. | B64: Emergency Costs
B65: CAPEX | C65: 3.6 | D65: m
B66: OPEX | C66: 1 | D66: m
B67: Total cost per year | C67: =C66+C65/5 -> 1.72 | D67: m | G67: Cost per prop | H67: =C67/2 -> 0.86 | I67: £/prop/year for 2,000,000 properties for emergency services

Sheet Leakage costs (hidden)
A1: Source: | B1: Martin Hopkins, Finance Business Partner, April 2019
A2: Definition: | B2: Annual leakage Find & Fix costs - Reactive R&M and Proactive leakage
B5: Leakage Management Costs & Leakage Allowance
A6: Properties 2018/19 | B6: =2319.165*1000 -> 2319165 | C6: << APR Datashare 2018 -Table 4Q
A7: Total length of mains (km) | B7: 31790.1
B9: 1. Leakage Management Cost
C11: 2015/16 | D11: 2016/17 | E11: 2017/18 | F11: 2018/19
B12: Reactive R&M | C12: 8921428 | D12: 11940917 | E12: 14224491 | F12: 18824339
B13: Proactive Leakage | C13: 10451975 | D13: 9552427 | E13: 16342953 | F13: 33208227 | H13: 4yrs average
B14: Total | C14: =SUM(C12:C13) -> 19373403 | D14: =SUM(D12:D13) -> 21493344 | E14: =SUM(E12:E13) -> 30567444 | F14: =SUM(F12:F13) -> 52032566 | H14: =AVERAGE(C16:F16) ->  | I14: << leakage management cost for YW
B15: £/meter for YW | C15: =C14/($B$7*10^3) -> 0.6094162334 | D15: =D14/($B$7*10^3) -> 0.6761018053 | E15: 0.9615397246 | F15: =F14/($B$7*10^3) -> 1.636753769
B16: £/prop NAV | C16: =C15*'Wholesale Tariff'!$D$63 ->  | D16: =D15*'Wholesale Tariff'!$D$63 ->  | E16: =E15*'Wholesale Tariff'!$D$63 ->  | F16: =F15*'Wholesale Tariff'!$D$63 -> 
B19: 2. Leakage Allowance
B20: Method 1 - APR Datashare 2018 - Table 4P (line 74)
B21: Company | C21: Length mains (m) | D21: Distribution losses (l/d) | E21: m3/d | F21: m3/metre/annum
B22: 2018/19 | C22: =B7*1000 -> 31790100 | D22: =212.04*1000000 -> 212040000 | E22: =CONVERT(D22,"l","m^3") -> 212040 | F22: =(E22/C22)*365 -> 2.434550379
B23: 2017/18 | C23: =31693.4*10^3 -> 31693400 | D23: 219210000 | E23: =CONVERT(D23,"l","m^3") -> 219210 | F23: =(E23/C23)*365 -> 2.52455243
B25: Method 2 - Natural Rate of Rise
B26: Average Total Leakage Losses for the al age groups (m3/m/yr)
B27: 1.599270864 | C27: << Water lost per metre of main per annum 2018/19
C29: Annual Losses (m3/year) | D29: Total input water for the site | E29: Leakage Allowance | F29: Uncapped leakage allowance
B30: Water | C30: =IF(ISBLANK('Wholesale Tariff'!$D$28),('Wholesale Tariff'!$D$29*1000)*'Leakage costs'!$B$27,('Wholesale Tariff'!$D$28*1000)*'Leakage costs'!$B$27) -> 0 | D30: =('Wholesale Tariff'!D31*'Wholesale Tariff'!D37+'Wholesale Tariff'!D32*'Wholesale Tariff'!D40+'Leakage costs'!C30) -> 0 | E30: =IF(ROUNDUP((C30/D30),3)>0.12,0.12,ROUNDUP((C30/D30),3)) ->  | F30: =ROUNDUP((C30/D30),3) -> 

Sheet Wastewater costs (hidden)
A1: Source: | B1: Peter Bennett, Finance Business Partner (Waste Water), October 2018
B2: Mark Thompson, Capital Process Manager, December 2018
A3: Definition: | B3: Total expenditure for Jetting, Vactor, CCTV and Densilts
A5: 1. | B5: Sewerage Operational Costs
A6: Properties 2018/19 | B6: =2299.162*1000 -> 2299162
C7: Provided by Peter Bennett
C8: 2014-15 | E8: 2015-16 | G8: 2016-17 | I8: 2017-18 | K8: 2018-19
B9: Activities (£m) | C9: OPEX | D9: CAPEX | E9: OPEX | F9: CAPEX | G9: OPEX | H9: CAPEX | I9: OPEX | J9: CAPEX | K9: OPEX | L9: CAPEX
A10: 1 | B10: Jetting | C10: 4827550.17 | D10: 1469977.83 | E10: 4555664.17 | F10: 1101725.6 | G10: 4348373 | H10: 983054 | I10: 4728000 | J10: 1286000 | K10: 7017104 | L10: 647759
A11: 2 | B11: Vactor | C11: 2219526.46 | D11: 88830.54 | E11: 2388440.87 | F11: 87390.59 | G11: 3852008.83 | H11: 29410 | I11: 3673000 | J11: 87000 | K11: 3265399 | L11: 129429
A12: 3 | B12: CCTV | C12: 1006218.06 | D12: 163509.12 | E12: 744499.96 | F12: 120050.9 | G12: 1371729 | H12: 118278.17 | I12: 746000 | J12: 85000 | K12: 657350 | L12: 22762
A13: 4 | B13: Desilts | C13: 1271632.43 | D13: 17679.57 | E13: 1124842.25 | F13: 40357.01 | G13: 959572 | H13: 29410 | I13: 712000 | J13: 6000 | K13: 612337 | L13: 3037
B14: TOTAL | C14: =SUM(C10:C13) -> 9324927.12 | D14: =SUM(D10:D13) -> 1739997.06 | E14: 8813447.25 | F14: 1349524.1 | G14: 10531682.83 | H14: 1160152.17 | I14: 9859000 | J14: 1464000 | K14: =SUM(K10:K13) -> 11552190 | L14: 802987
B16: APR Datashare 2018/19 | C16: Length (km) | D16: Length (meter)
B17: Total length of combined public sewers 2017/18 | C17: 16265.90343 | D17: =C17*1000 -> 16265903.43
C21: 2014-15 | E21: 2015-16 | G21: 2016-17 | I21: 2017-18 | K21: 2017-18 | M21: 2018-19 | O21: 2018-19
B22: Activities (£k) | C22: OPEX | D22: CAPEX | E22: OPEX | F22: CAPEX | G22: OPEX | H22: CAPEX | I22: OPEX for YW | J22: CAPEX for YW | K22: OPEX for NAV (£/prop) | L22: CAPEX for NAV (£/prop) | M22: OPEX for YW | N22: CAPEX for YW | O22: OPEX for NAV (£/prop) | P22: CAPEX for NAV (£/prop)
A23: 1 | B23: Jetting | C23: =C10/$D$17 -> 0.2967895506 | D23: =D10/$D$17 -> 0.09037172979 | E23: 0.280074463 | F23: 0.06773221079 | G23: 0.2673305555 | H23: 0.06043648322 | I23: 0.2906693759 | J23: 0.0790610866 | K23: =I23*'Wholesale Tariff'!$D$64 ->  | L23: =J23*'Wholesale Tariff'!$D$64 ->  | M23: =K10/$D$17 -> 0.4313995855 | N23: =L10/$D$17 -> 0.0398231185 | O23: =M23*'Wholesale Tariff'!$D$64 ->  | P23: =N23*'Wholesale Tariff'!$D$64 -> 
A24: 2 | B24: Vactor | C24: =C11/$D$17 -> 0.1364527011 | D24: 0.00546115009 | E24: 0.146837271 | F24: 0.00537262442 | G24: 0.2368149329 | H24: 0.001808076638 | I24: =I11/$D$17 -> 0.2258097753 | J24: 0.005348611613 | K24: =I24*'Wholesale Tariff'!$D$64 ->  | L24: =J24*'Wholesale Tariff'!$D$64 ->  | M24: =K11/$D$17 -> 0.2007511611 | N24: 0.007957074166 | O24: =M24*'Wholesale Tariff'!$D$64 ->  | P24: =N24*'Wholesale Tariff'!$D$64 -> 
A25: 3 | B25: CCTV | C25: =C12/$D$17 -> 0.06186057012 | D25: 0.01005226182 | E25: 0.04577058772 | F25: 0.007380524573 | G25: 0.0843315593 | H25: 0.007271540156 | I25: 0.04586280762 | J25: 0.005225655024 | K25: =I25*'Wholesale Tariff'!$D$64 ->  | L25: =J25*'Wholesale Tariff'!$D$64 ->  | M25: =K12/$D$17 -> 0.04041275682 | N25: 0.001399368937 | O25: =M25*'Wholesale Tariff'!$D$64 ->  | P25: =N25*'Wholesale Tariff'!$D$64 -> 
A26: 4 | B26: Desilts | C26: =C13/$D$17 -> 0.0781777929 | D26: 0.001086909809 | E26: 0.069153383 | F26: 0.002481080142 | G26: 0.05899284991 | H26: 0.001808076638 | I26: 0.04377254561 | J26: 0.0003688697664 | K26: =I26*'Wholesale Tariff'!$D$64 ->  | L26: =J26*'Wholesale Tariff'!$D$64 ->  | M26: =K13/$D$17 -> 0.03764543436 | N26: 0.0001867095801 | O26: =M26*'Wholesale Tariff'!$D$64 ->  | P26: =N26*'Wholesale Tariff'!$D$64 -> 
B27: TOTAL | C27: =SUM(C23:C26) -> 0.5732806147 | D27: =SUM(D23:D26) -> 0.1069720515 | E27: =SUM(E23:E26) -> 0.5418357047 | F27: =SUM(F23:F26) -> 0.08296643992 | G27: =SUM(G23:G26) -> 0.6474698976 | H27: 0.07132417666 | I27: =SUM(I23:I26) -> 0.6061145045 | J27: 0.090004223 | M27: 0.7102089378 | N27: 0.04936627119
O28: =AVERAGE(O27) ->  | P28: =AVERAGE(P27) -> 
A30: 2. | B30: Replacement Costs
B32: 1. Sewers
B33: CCC table 16 | C33: 2011-12 | D33: 2012-13 | E33: 2013-14 | F33: 2014-15 | G33: 2015-16 | H33: 2016-17 | I33: 2017-18 | J33: 2018-19
B34: Critical sewers - replaced (km) | C34: 0.39 | D34: 0.7982 | E34: -0.2319 | F34: 0.9443 | G34: 0.70703 | H34: 0.1886 | I34: 0.68 | J34: 0.68
B35: Non-critical sewers replaced (km) | C35: 5.48 | D35: 5.09198 | E35: 20.71 | F35: 15.18472 | G35: 12.74956 | H35: 12.49095 | I35: 14.96 | J35: 14.96
B36: Total length of sewers (km) | C36: 30388.11 | D36: 30508.681 | E36: 30532.90684 | F36: 30524.8 | G36: 30563.27598 | H36: 30620.55 | I36: 30669.6 | J36: 30732.39903 | K36: =(J36/(J34+J35)) -> 1964.98715
B37: Rate sewers replaced | C37: =SUM(C34:C35)/C36 -> 0.0001931676567 | D37: =SUM(D34:D35)/D36 -> 0.0001930657048 | E37: 0.0006706894992 | F37: 0.0005283906856 | G37: 0.0004402862445 | H37: 0.0004140862917 | I37: 0.0005099512221 | J37: =SUM(J34:J35)/J36 -> 0.0005089091804
B39: Provided by Mark Thompson
B40: Investment driver | C40: 2017/18 Actuals | D40: 2018/19 Actuals | E40: Cost per meter for YW (£/m) | F40: Cost per property for NAV (£/prop)
B41: TOTAL | C41: 6502323.47 | D41: 7524789.61 | E41: =AVERAGE(D41)/D17 -> 0.4626112309 | F41: =E41*'Wholesale Tariff'!D64 -> 
B43: 1. Furniture (Manhole and Manhole covers)
B44: Provided by Mark Thompson
B45: Investment driver | C45: 2017/18 Actuals | D45: 2018/19 Actuals | E45: Cost per meter for YW (£/m) | F45: Cost per property for NAV (£/prop)
B46: Manhole and Manhole covers | C46: 1171042.87 | D46: 1547678.18 | E46: =AVERAGE(D46)/D17 -> 0.09514861479 | F46: =E46*'Wholesale Tariff'!D64 -> 

Sheet Business overhead (hidden)
B1: Business Overhead
C3: £m
A4: 1 | B4: HH Retail Opex | C4: 60.991 | D4: <<APR datashare Table 2C 2018/19
A5: 2 | B5: Loop Recharge | C5: =4.765693+4.765693*0.176 -> 5.604454968 | D5: <<Provided by Naomi Scholey
A6: 3 | B6: YKS Charge | C6: =0.956819+0.956819*0.176 -> 1.125219144
B8: TOTAL | C8: =SUM(C5:C6) -> 6.729674112
B9: % Overhead | C9: =C8/C4 -> 0.1103388059
A12: Source: ''Section 3 Wholesale Minus", David Musco
A13: Business overhead calculation is based on the idea
A14: that the incumbnent's HH retail arm will notionally
A15: extend its business activities to embrace the local
A16: network management/operation on these same
A17: new developments.
